fUSD/lending_fUSD_20240210
["ID","MTS","AMOUNT","RATE_DAILY","PERIOD"]
[313696060,1707587576927,-153.05381951,0.00044767,60]
[313696061,1707587576960,-546856.81531947,0.000448,45]
[313696062,1707587576994,-11582.70708935,0.000449,120]
[313696063,1707587577029,-10000.0,0.000449,40]
[313696064,1707587577062,-15122.771499,0.000449,77]
[313696065,1707587577100,-4000.0,0.00044998,45]
[313696066,1707587577135,-109925.21843915,0.00044999,35]
[313696067,1707587577178,-143281.9217836,0.00044999,40]
[313696068,1707587577220,-100000.0,0.00045,35]
[313696069,1707587577259,-353.12905582,0.00045,45]
[313696070,1707587577296,-1000000.0,0.00045,120]
[313696071,1707587577332,-487610.61757965,0.00045,120]
[313696072,1707587577413,300.0,0.00021289,2]
[313696074,1707587584655,171.3,0.0001745,2]
[313696075,1707587596571,1679.08153296,0.00021918,2]
[313696076,1707587596595,4191.23846704,0.00021918,2]
[313696077,1707587602768,280.0,0.00021733,2]
[313696078,1707587603322,5505.27066278,0.00021733,2]
[313696079,1707587603346,9976.50912982,0.00021733,2]
[313696080,1707587603370,8418.2202074,0.00021733,2]
[313696081,1707587624495,157.36159527,0.00021289,2]
[313696082,1707587627707,361.65945006,0.00021289,2]
[313696083,1707587629280,6653.0,0.0002,2]
[313696084,1707587630010,858.05378955,0.00021289,2]
[313696085,1707587631500,162.21767949,0.0001998,2]
[313696086,1707587633917,165.92,0.00021711,2]
[313696089,1707587637586,623.3393929,0.00021312,2]
[313696090,1707587644468,157.36159527,0.00021289,2]
[313696091,1707587648071,562.77683939,0.00019758,2]
[313696092,1707587649020,197.38780177,0.00022,2]
[313696093,1707587649488,164.75386382,0.0001998,2]
[313696095,1707587649919,3469.68155368,0.0002,2]
[313696097,1707587664337,258.33,0.00022,2]
[313696098,1707587668576,157.36159527,0.00021711,2]
[313696099,1707587681164,155.44142013,0.0001998,2]
[313696100,1707587684487,157.36159527,0.00021711,2]
[313696101,1707587690746,1199.49514891,0.00021711,2]
[313696102,1707587695640,250.0,0.00021918,2]
[313696103,1707587696071,412.03444476,0.00019758,2]
[313696104,1707587700575,157.89529953,0.00021971,2]
[313696105,1707587711731,150.0,0.00022,2]
[313696106,1707587720185,1005.86579131,0.0002,2]
[313696107,1707587749402,603.25,0.00021516,2]
[313696109,1707587777693,150.0,0.00022,2]
[313696110,1707587786883,200.0,0.00021486,2]
[313696111,1707587806999,24113.88,0.00021483,2]
[313696112,1707587863758,200.0,0.00021453,2]
[313696113,1707587878454,155.0,0.00021483,2]
[313696114,1707587894825,1419.6906,0.00021971,2]
[313696115,1707587900480,165.62503683,0.00021483,2]
[313696116,1707587977597,1898.06,0.00021433,2]
[313696117,1707587988714,181.81,0.00021433,10]
[313696118,1707588006172,151.65,0.00021433,2]
[313696119,1707588014617,175.74,0.00016712,2]
[313696120,1707588074871,611.26,0.00019545,2]
[313696121,1707588075091,611.26,0.00021809,2]
[313696122,1707588075858,502.88579647,0.00016712,7]
[313696123,1707588086439,193.78,0.00021463,2]
[313696124,1707588108998,153.85,0.00021438,2]
[313696125,1707588163543,165.92,0.00021463,2]
[313696126,1707588241773,517.4,0.00021486,2]
[313696127,1707588245385,207.0,0.00021373,2]
[313696128,1707588269913,1992.32970312,0.0002109,7]
[313696129,1707588269957,150.0,0.00022,2]
[313696130,1707588301866,548.01448646,0.00021463,7]
[313696131,1707588309099,258.33,0.00022,2]
[313696132,1707588310637,1500.0,0.00022,2]
[313696133,1707588323873,554.46226133,0.00022,7]
[313696134,1707588359486,1500.0,0.00022,2]
[313696135,1707588505906,275.8,0.0002134,2]
[313696136,1707588532331,156.74605533,0.00021969,2]
[313696144,1707588552605,584.14,0.000194,2]
[313696145,1707588552789,584.14,0.00021664,2]
[313696167,1707588587243,1643.55,0.00021317,2]
[313696181,1707588631429,-534.55510167,0.00022067,2]
[313696182,1707588631439,-4592.62458054,0.00022068,2]
[313696183,1707588631449,-723.01,0.00022069,2]
[313696184,1707588631459,-735.61,0.0002207,2]
[313696185,1707588631470,-716.62,0.00022071,2]
[313696186,1707588631481,-792.51428452,0.00022072,2]
[313696187,1707588631491,-150.0,0.00022072,2]
[313696188,1707588631500,-714.02,0.00022073,2]
[313696189,1707588631515,-730.85,0.00022073,2]
[313696190,1707588631525,-715.24,0.00022074,2]
[313696191,1707588631535,-710.5,0.00022074,2]
[313696192,1707588631545,-727.43,0.00022074,2]
[313696193,1707588631555,-7845.09438671,0.00022079,2]
[313696194,1707588631566,-499.99,0.00022079,2]
[313696195,1707588631576,-150.99,0.00022079,2]
[313696196,1707588631587,-1335.3442,0.00022102,2]
[313696197,1707588631597,-450.7539,0.00022102,2]
[313696198,1707588631607,-164.49,0.00022126,2]
[313696199,1707588631617,-258.33,0.00022137,2]
[313696200,1707588631627,-167.05,0.00022161,2]
[313696201,1707588631636,-383.96093533,0.00022192,2]
[313696202,1707588631646,-1054.0465193,0.000222,2]
[313696203,1707588631655,-162.42031156,0.000222,2]
[313696204,1707588631665,-155.0,0.000222,2]
[313696205,1707588631674,-1064.65585349,0.000222,2]
[313696206,1707588631684,-4714.92629925,0.000222,2]
[313696207,1707588631694,-172.60686287,0.000222,2]
[313696209,1707588631704,-1858.86108655,0.000222,2]
[313696210,1707588631713,-155.0,0.000222,2]
[313696211,1707588631723,-314.91823831,0.000222,2]
[313696212,1707588631732,-292.81919456,0.000222,2]
[313696213,1707588631742,-282.53759197,0.000222,2]
[313696214,1707588631751,-165.30463324,0.000222,2]
[313696215,1707588631760,-1063.22789421,0.00022201,2]
[313696216,1707588631770,-5094.05466202,0.00022201,2]
[313696217,1707588631781,-235337.5263,0.00022202,2]
[313696218,1707588631791,-942.7733,0.00022202,2]
[313696219,1707588631801,-258.33,0.00022274,2]
[313696220,1707588631810,-156.74605532,0.00022279,2]
[313696221,1707588631820,-307.08635321,0.0002235,2]
[313696222,1707588631829,-526.98480998,0.00022351,2]
[313696223,1707588631838,-156.60052001,0.00022352,2]
[313696224,1707588631847,-703.34718247,0.00022352,2]
[313696225,1707588631857,-3.00801428,0.00022407,2]
[313696226,1707588631870,-272.79198572,0.00022407,2]
[313696227,1707588631879,-258.33,0.00022411,2]
[313696228,1707588631888,-700.0,0.000225,8]
[313696229,1707588631897,-150.0,0.00022548,2]
[313696230,1707588631907,-409.60057428,0.00022548,2]
[313696231,1707588631917,-156.74605532,0.0002259,2]
[313696232,1707588631927,-1400.0,0.000226,8]
[313696233,1707588631937,-300.0,0.00022687,2]
[313696234,1707588631948,-2100.0,0.000227,8]
[313696235,1707588631960,-3949.10736557,0.00022716,2]
[313696236,1707588631970,-190.40557565,0.0002275,2]
[313696237,1707588631980,-190.40557562,0.00022788,2]
[313696238,1707588631992,-208.8729,0.00022798,2]
[313696239,1707588632002,-3923.0,0.000228,2]
[313696240,1707588632011,-20867.0,0.000228,2]
[313696241,1707588632024,-206.34,0.000228,2]
[313696242,1707588632035,-2900.0,0.000228,8]
[313696243,1707588632046,-500.0,0.00022815,2]
[313696244,1707588632055,-800.0,0.00022815,2]
[313696245,1707588632065,-500.0,0.00022815,2]
[313696246,1707588632075,-500.0,0.00022816,2]
[313696247,1707588632084,-500.0,0.00022816,2]
[313696248,1707588632093,-500.0,0.00022816,2]
[313696249,1707588632103,-500.0,0.00022816,2]
[313696250,1707588632112,-500.0,0.00022816,2]
[313696251,1707588632121,-500.0,0.00022816,2]
[313696252,1707588632131,-200.0,0.00022816,2]
[313696253,1707588632140,-800.0,0.00022816,2]
[313696254,1707588632150,-190.40557562,0.00022825,2]
[313696255,1707588632160,-16226.24895443,0.0002285,2]
[313696256,1707588632178,-305.83907014,0.0002285,2]
[313696257,1707588632190,-1276.94129619,0.0002285,2]
[313696258,1707588632237,-890.07115902,0.0002285,2]
[313696260,1707588637460,-2229.35793236,0.000226,3]
[313696261,1707588637521,-469.63768121,0.000226,3]
[313696262,1707588637732,-1809.69554801,0.000226,3]
[313696291,1707588640127,-785.15857409,0.000226,3]
[313696292,1707588640139,-1000.0,0.000226,3]
[313696293,1707588640155,-74.09390037,0.000226,3]
[313696294,1707588640165,-1958.40609963,0.0002285,2]
[313696318,1707588642455,-349.22945785,0.0002285,2]
[313696327,1707588642560,-4494.67146496,0.0002285,2]
[313696332,1707588642615,-470.18795034,0.0002285,2]
[313696341,1707588642724,-587.2575,0.0002285,2]
[313696343,1707588642736,-611.56229255,0.0002285,2]
[313696345,1707588642747,-2997.44145852,0.0002285,2]
[313696347,1707588642756,-736.98,0.0002285,2]
[313696348,1707588642765,-190.40557562,0.00022863,2]
[313696350,1707588642774,-1500.0,0.000229,2]
[313696352,1707588642784,-7109.54557613,0.000229,2]
[313696354,1707588642805,-4827.07633893,0.000229,2]
[313696356,1707588642817,-858.21016671,0.000229,2]
[313696358,1707588642829,-341.04,0.000229,2]
[313696487,1707588740033,219.55873124,0.00021845,7]
[313696488,1707588751773,586.08,0.00021974,2]
[313696489,1707588790343,1006.61886355,0.00020695,2]
[313696490,1707588806151,155.21224184,0.00021845,2]
[313696491,1707588925238,177.16,0.00022,2]
[313696492,1707588939237,516.36,0.00022,2]
[313696493,1707589007802,151.65,0.00021694,2]
[313696494,1707589054929,1369.62,0.00021667,2]
[313696495,1707589058151,537.28,0.0001974,2]
[313696496,1707589058565,537.28,0.00022004,2]
[313696497,1707589074764,164.96,0.00021727,2]
[313696498,1707589159464,-414.09266813,0.00022058,2]
[313696499,1707589159484,-356.19262733,0.00022058,2]
[313696500,1707589159505,-4266.85156024,0.0002206,2]
[313696501,1707589159527,-4541.91667027,0.0002206,2]
[313696502,1707589160640,281.00818574,0.00022057,2]
[313696503,1707589222048,531.13,0.00021787,2]
[313696504,1707589324098,207.0,0.00021132,2]
[313696505,1707589354446,156.74605532,0.00021972,2]
[313696506,1707589392474,150.0,0.00022,2]
[313696507,1707589395144,-715.58,0.00022069,2]
[313696508,1707589395170,-714.21,0.00022069,2]
[313696509,1707589395199,-717.41,0.00022069,2]
[313696510,1707589395226,-720.12,0.00022069,2]
[313696511,1707589395251,-732.65,0.00022069,2]
[313696512,1707589395278,-719.99,0.0002207,2]
[313696513,1707589395304,-709.88,0.00022071,2]
[313696514,1707589395329,-712.72,0.00022072,2]
[313696515,1707589395355,-711.69,0.00022073,2]
[313696516,1707589395380,-724.59,0.00022075,2]
[313696517,1707589395405,-421.74823004,0.00022075,2]
[313696518,1707589448299,-300.0,0.00022195,2]
[313696519,1707589448318,-150.0,0.00022195,2]
[313696520,1707589448339,-736.1,0.00022196,2]
[313696521,1707589448360,-715.66,0.00022196,2]
[313696522,1707589448383,-727.35,0.00022196,2]
[313696523,1707589448402,-2472.87,0.00022196,2]
[313696524,1707589448422,-716.64,0.00022197,2]
[313696525,1707589448446,-499.99,0.00022197,2]
[313696526,1707589448466,-910.08,0.00022197,2]
[313696527,1707589448487,-150.99,0.00022197,2]
[313696528,1707589448507,-13632.44,0.00022197,2]
[313696529,1707589448529,-726.0,0.00022198,2]
[313696530,1707589448550,-712.02,0.00022199,2]
[313696531,1707589448570,-278.2434589,0.000222,2]
[313696532,1707589460762,150.0,0.00022,2]
[313696533,1707589469542,175.74,0.00016712,2]
[313696534,1707589496459,3139.99367387,0.00021845,2]
[313696535,1707589522452,3141.35362126,0.00021845,2]
[313696536,1707589540483,2107.13525631,0.00021845,2]
[313696537,1707589552448,150.0,0.00022,2]
[313696538,1707589564298,353.9,0.00022,2]
[313696539,1707589591417,1141.35,0.0002193,2]
[313696540,1707589641421,195.81,0.00021906,2]
[313696543,1707589678026,150.0,0.000219,2]
[313696544,1707589680628,575.09,0.00021877,2]
[313696545,1707589719322,483.55,0.00019957,2]
[313696546,1707589827258,200.0,0.00021951,2]
[313696553,1707589831647,-483.55,0.00022221,2]
[313696554,1707589831657,-94.55578071,0.00022341,2]
[313696555,1707589831700,-131.97901929,0.00022341,2]
[313696556,1707589831710,-135.52098071,0.00022441,2]
[313696557,1707589831762,-1767.6779979,0.00022441,2]
[313696558,1707589831775,-1740.11855602,0.00022441,2]
[313696559,1707589831785,-251.63307044,0.00022441,2]
[313696560,1707589831795,-251.63307044,0.00022441,2]
[313696561,1707589831805,-251.63307044,0.00022441,2]
[313696562,1707589831815,-150.0,0.00022441,2]
[313696563,1707589831825,-164.14,0.00022441,2]
[313696564,1707589831835,-715.73,0.00022442,2]
[313696565,1707589831845,-718.93,0.00022442,2]
[313696566,1707589831854,-717.45,0.00022442,2]
[313696567,1707589831865,-851.4376208,0.00022442,2]
[313696568,1707589831878,-223.8236001,0.00022442,2]
[313696569,1707589831888,-485.74923354,0.00022442,2]
[313696570,1707589831904,-474.6688742,0.00022442,2]
[313696571,1707589831917,-131.1991134,0.00022442,2]
[313696572,1707589831926,-150.99,0.00022442,2]
[313696573,1707589831936,-300.0,0.000225,8]
[313696574,1707589831945,-217.96215078,0.000226,2]
[313696575,1707589831958,-538.89529326,0.000226,2]
[313696576,1707589831967,-758.34606215,0.000226,2]
[313696583,1707589832037,-241.65393785,0.000226,2]
[313696585,1707589832046,-175.38,0.000226,2]
[313696587,1707589832056,-278.66008818,0.000226,8]
[313696647,1707589837881,-421.33991182,0.000226,8]
[313696648,1707589837893,-542.36463896,0.0002268,2]
[313696649,1707589837905,-155.62316996,0.00022699,2]
[313696650,1707589837918,-777.33961723,0.000227,2]
[313696656,1707589840596,-1526.33110266,0.000227,2]
[313696657,1707589840608,-512.46380274,0.000227,2]
[313696658,1707589840619,-1499.54919726,0.000227,2]
[313696667,1707589841498,-155.0,0.00022698,2]
[313696668,1707589841507,-4465.14865157,0.000227,2]
[313696670,1707589843314,-3054.60002621,0.000227,2]
[313696761,1707589845719,-435.43859238,0.000227,2]
[313696762,1707589846287,-7704.19361304,0.000227,2]
[313696763,1707589863364,-611.05997391,0.00022074,2]
[313696764,1707589863385,-518.55980195,0.00022075,2]
[313696765,1707589867732,4266.85156024,0.00022074,2]
[313696766,1707589892342,150.0,0.00022,2]
[313696768,1707589972096,685.16,0.00021952,2]
[313696769,1707590034361,162.16,0.00022018,2]
[313696770,1707590043953,207.0,0.00021908,2]
[313696771,1707590099594,1019.6,0.00021852,2]
[313696772,1707590148962,250.0,0.00021849,2]
[313696773,1707590159060,539.92,0.00021849,2]
[313696774,1707590204524,256.70733748,0.00019937,2]
[313696775,1707590204545,191.70266252,0.00019937,2]
[313696776,1707590360273,5961.23376169,0.00021842,7]
[313696777,1707590552511,849.66,0.00021852,2]
[313696778,1707590598115,164.96,0.00021846,2]
[313696779,1707590640660,568.06,0.00021849,2]
[313696780,1707590647719,156.64,0.00021849,2]
[313696781,1707590668734,425.98,0.00019933,2]
[313696782,1707590815753,23900.0,0.00021866,2]
[313696797,1707591002706,708.05,0.00021852,2]
[313696857,1707591037826,-155.0,0.000221,2]
[313696859,1707591037836,-154.59809081,0.00022101,2]
[313696861,1707591037845,-90.40190919,0.00022196,2]
[313696863,1707591038214,-2529.8154281,0.00022196,2]
[313696864,1707591038694,-295.46537534,0.00022196,2]
[313696865,1707591038703,-425.98,0.00022197,2]
[313696866,1707591038712,-278.76656492,0.000225,2]
[313696867,1707591040575,-604.57016637,0.000225,2]
[313696868,1707591040591,-116.66326871,0.000225,2]
[313696869,1707591040600,-150.0,0.000225,2]
[313696870,1707591040609,-107.92985883,0.000225,8]
[313696871,1707591040655,-192.07014117,0.000225,8]
[313696872,1707591040665,-138.35790374,0.000226,8]
[313696873,1707591040678,-461.64209626,0.000226,8]
[313696874,1707591040687,-150.0,0.0002263,2]
[313696875,1707591040697,-1500.0,0.00022637,2]
[313696876,1707591040713,-242.21383963,0.00022637,2]
[313696877,1707591040843,-205.26616037,0.00022637,2]
[313696878,1707591040855,-850.12,0.00022637,2]
[313696879,1707591040865,-1500.0,0.00022651,2]
[313696880,1707591040875,-1000.0,0.00022677,2]
[313696881,1707591040885,-150.0,0.00022677,2]
[313696882,1707591040895,-150.99,0.00022678,2]
[313696883,1707591040904,-150.99,0.00022678,2]
[313696884,1707591040914,-1871.03,0.00022678,2]
[313696885,1707591040924,-4958.32326648,0.00022678,2]
[313696886,1707591040951,-15137.07714408,0.00022678,2]
[313696887,1707591041331,-1601.50958944,0.00022678,2]
[313696888,1707591041341,-1416.53041056,0.00022678,2]
[313696947,1707591042849,-1723.65495718,0.00022678,2]
[313696948,1707591042907,-14375.36463226,0.00022678,2]
[313696949,1707591042918,-10191.44,0.00022678,2]
[313696950,1707591042928,-3087.45,0.00022678,2]
[313696951,1707591042938,-1500.0,0.00022683,2]
[313696952,1707591042947,-200.0,0.00022692,2]
[313696953,1707591042957,-3727.0,0.000227,2]
[313696954,1707591042967,-900.0,0.000227,8]
[313696955,1707591042977,-324.59103937,0.00022721,2]
[313696956,1707591042987,-150.0,0.00022726,2]
[313696957,1707591042997,-1500.0,0.00022742,2]
[313696958,1707591043007,-751.36636787,0.00022782,2]
[313696959,1707591043018,-152.15491724,0.00022796,2]
[313696960,1707591043028,-767.4698641,0.000228,3]
[313696961,1707591043038,-1200.0,0.000228,8]
[313696962,1707591043047,-207.0,0.00022838,2]
[313696963,1707591043058,-735.02,0.0002285,2]
[313696964,1707591043067,-300.29382291,0.00022851,2]
[313696965,1707591043077,-1294.53568416,0.00022859,3]
[313696966,1707591043087,-4346.93779128,0.0002288,2]
[313696967,1707591043097,-1134.6345,0.00022896,2]
[313696968,1707591043107,-2955.4136,0.00022897,2]
[313696969,1707591043117,-417.8091,0.00022897,2]
[313696970,1707591043127,-26405.2873,0.00022897,2]
[313696971,1707591043137,-190.40557562,0.00022897,2]
[313696972,1707591043147,-285.61170655,0.00022898,2]
[313696973,1707591043157,-2452.12707094,0.00022899,2]
[313696974,1707591043166,-150.01,0.00022899,2]
[313696975,1707591043177,-2354.21676939,0.00022899,2]
[313696976,1707591043187,-6864.12791823,0.000229,2]
[313696978,1707591043196,-2000.0,0.000229,2]
[313696980,1707591043206,-200.0,0.000229,2]
[313696982,1707591043215,-2000.0,0.000229,2]
[313696984,1707591043225,-5000.0,0.000229,2]
[313696986,1707591043234,-11468.49745684,0.000229,2]
[313696988,1707591043244,-1217.74175997,0.000229,2]
[313696990,1707591043253,-1558.76108458,0.000229,2]
[313696992,1707591043262,-184.17710328,0.000229,2]
[313696994,1707591043272,-882.1239815,0.000229,2]
[313696995,1707591043281,-3208.97549074,0.000229,2]
[313696996,1707591043291,-559.48055774,0.000229,2]
[313696997,1707591043301,-1694.03467541,0.000229,6]
[313696998,1707591043310,-1600.0,0.000229,8]
[313696999,1707591043320,-1252.53704463,0.00022913,2]
[313697000,1707591043329,-156.64,0.00022941,2]
[313697001,1707591043339,-1502.30003653,0.00022984,3]
[313697002,1707591043349,-421.16139741,0.00022984,2]
[313697003,1707591043359,-202.43475047,0.0002299,2]
[313697004,1707591043368,-202.43475047,0.0002299,2]
[313697005,1707591043377,-202.43475047,0.0002299,2]
[313697006,1707591043387,-215.82244978,0.00022993,2]
[313697007,1707591043397,-391.52648056,0.00022995,2]
[313697008,1707591043406,-413.72986441,0.00022995,2]
[313697009,1707591043416,-3639.49084539,0.00022995,2]
[313697010,1707591043425,-155.0,0.00022995,2]
[313697011,1707591043434,-179.80496733,0.00022995,2]
[313697012,1707591043444,-490.59306223,0.00022995,2]
[313697013,1707591043453,-155.25463852,0.00022996,2]
[313697014,1707591043462,-4718.8773215,0.00022996,2]
[313697015,1707591043472,-401.81008,0.00022996,2]
[313697016,1707591043483,-2328.75332884,0.00022996,2]
[313697017,1707591043493,-155.0,0.00022996,2]
[313697018,1707591043502,-402.05155775,0.00022996,2]
[313697019,1707591043511,-286.61939797,0.00022996,2]
[313697020,1707591043521,-1645.71074478,0.00022996,2]
[313697021,1707591043531,-1111.12644229,0.00022996,2]
[313697022,1707591043540,-156.34847401,0.00022996,2]
[313697023,1707591043549,-155.55300753,0.00022996,2]
[313697024,1707591043559,-584.16439746,0.00022996,2]
[313697025,1707591043568,-3829.99816176,0.00022996,2]
[313697026,1707591043578,-1170.67381295,0.00022997,3]
[313697027,1707591043587,-184962.30423776,0.00022997,2]
[313697028,1707591043598,-1104.0405162,0.00022997,3]
[313697029,1707591043608,-290.25040321,0.00022997,2]
[313697031,1707591043618,-155.0,0.00022997,2]
[313697033,1707591043630,-156.35574996,0.00022997,2]
[313697035,1707591043647,-249.89532111,0.00022997,2]
[313697038,1707591043665,-1179.77337866,0.00022997,2]
[313697039,1707591043674,-191.73170434,0.00022997,2]
[313697040,1707591043683,-311.50232895,0.00022998,2]
[313697041,1707591043693,-155.0,0.00022998,2]
[313697042,1707591043702,-2094.04138926,0.00022998,2]
[313697043,1707591043711,-43188.07171326,0.00022998,2]
[313697044,1707591043721,-1671.92896206,0.00022998,2]
[313697045,1707591043730,-437.82547225,0.00022998,2]
[313697046,1707591043740,-475.34156007,0.00022998,2]
[313697047,1707591043749,-321.96726608,0.00022998,2]
[313697048,1707591043758,-155.0,0.00022998,2]
[313697049,1707591043767,-420.14684856,0.00022998,2]
[313697050,1707591043777,-155.47323378,0.00022998,2]
[313697051,1707591043786,-245.41926485,0.00022998,2]
[313697052,1707591043796,-639.96926496,0.00022998,2]
[313697053,1707591043805,-205.04286769,0.00022998,2]
[313697054,1707591043815,-881.16568577,0.00022998,2]
[313697055,1707591043825,-221.80774392,0.00022998,2]
[313697056,1707591043834,-500.0,0.00022999,2]
[313697057,1707591043844,-500.0,0.00022999,2]
[313697058,1707591043853,-158.63832299,0.00022999,2]
[313697059,1707591043863,-500.0,0.00022999,2]
[313697060,1707591043872,-306.18317397,0.00022999,2]
[313697061,1707591043881,-500.0,0.00022999,2]
[313697062,1707591043891,-378.53600205,0.00022999,2]
[313697063,1707591043900,-500.0,0.00022999,2]
[313697064,1707591043910,-221.70689488,0.00022999,2]
[313697065,1707591043919,-500.0,0.00022999,2]
[313697066,1707591043929,-500.0,0.00022999,2]
[313697067,1707591043939,-355.46232449,0.00022999,2]
[313697068,1707591043948,-325.84809073,0.00022999,2]
[313697069,1707591043958,-500.0,0.00022999,2]
[313697070,1707591043968,-422.04198568,0.00022999,2]
[313697071,1707591043977,-278.53102145,0.00022999,2]
[313697072,1707591043986,-329.62440922,0.00022999,2]
[313697073,1707591043996,-500.0,0.00022999,2]
[313697074,1707591044005,-500.0,0.00022999,2]
[313697075,1707591044015,-500.0,0.00022999,2]
[313697076,1707591044025,-190.88515115,0.00022999,2]
[313697077,1707591044035,-378.96013436,0.00022999,2]
[313697078,1707591044044,-500.0,0.00022999,2]
[313697079,1707591044054,-500.0,0.00022999,2]
[313697080,1707591044063,-500.0,0.00022999,2]
[313697081,1707591044073,-150.0,0.00022999,2]
[313697082,1707591044082,-150.0,0.00022999,2]
[313697083,1707591044092,-150.0,0.00022999,2]
[313697084,1707591044102,-150.0,0.00022999,2]
[313697085,1707591044111,-150.0,0.00022999,2]
[313697086,1707591044121,-291.13612528,0.00022999,2]
[313697087,1707591044131,-75289.07092591,0.00023,2]
[313697088,1707591044149,-251.27,0.00023,2]
[313697089,1707591044161,-251329.61602686,0.00023,2]
[313697090,1707591044194,-4540.0,0.00023,2]
[313697093,1707591046148,-1177.10838469,0.00022899,2]
[313697094,1707591046158,-68383.97256026,0.00023,2]
[313697095,1707591046206,-1539.85648596,0.00023,2]
[313697097,1707591050547,162.35182927,0.00020699,2]
[313697098,1707591078992,2721.23427361,0.00021,2]
[313697099,1707591092815,537.78336467,0.0001,2]
[313697100,1707591093280,942.46383476,0.00022,2]
[313697101,1707591096903,8000.0,0.00011,2]
[313697102,1707591113970,33325.6747803,6.94e-05,2]
[313697103,1707591120985,5262.84061154,0.000155,2]
[313697104,1707591125293,410.89637104,0.0002,2]
[313697105,1707591147548,1889.21127229,0.00015,2]
[313697106,1707591163558,535.82,0.00020552,2]
[313697107,1707591191977,205.0,9.8e-05,2]
[313697108,1707591194337,164.21,0.00022057,2]
[313697109,1707591195596,4936.52167592,0.0001305,2]
[313697110,1707591196107,239.7332103,0.000101,2]
[313697111,1707591196434,869.67746725,0.00015,2]
[313697112,1707591196851,150.0,0.00022057,2]
[313697113,1707591197455,178.21136901,0.0002201,2]
[313697114,1707591202902,573.8,0.00022057,2]
[313697139,1707591212431,869.67746725,0.00015,2]
[313697140,1707591218476,1069.9,0.00022057,2]
[313697141,1707591221417,1954.78604858,0.0002,2]
[313697142,1707591221440,1726.0876618,0.0002,2]
[313697143,1707591231244,1634.38530048,0.000181,2]
[313697144,1707591238249,3950.0,0.0002,2]
[313697145,1707591249860,1000.0,0.000135,2]
[313697146,1707591249965,1976.49885611,0.0002,2]
[313697147,1707591250073,283.73275856,0.000125,2]
[313697148,1707591262388,236.209631,0.00022,2]
[313697149,1707591264810,250.0,0.00021943,2]
[313697150,1707591266656,206.46604224,0.0001,2]
[313697151,1707591270388,294.53992659,0.00021833,2]
[313697152,1707591285054,869.67746725,0.00021943,2]
[313697153,1707591289452,869.67746725,0.00021943,2]
[313697154,1707591308420,200.0,0.00022,2]
[313697155,1707591309417,1852.42,0.00022,2]
[313697156,1707591319956,21853.24,0.00021994,2]
[313697157,1707591325464,869.67746725,0.00021943,2]
[313697158,1707591345475,867.62965519,0.00022,2]
[313697159,1707591356852,200.0,0.00021882,2]
[313697160,1707591376510,500.0,0.00021882,2]
[313697161,1707591397977,1318.3,0.00021882,2]
[313697162,1707591422751,3139.99367387,0.00021846,2]
[313697163,1707591424675,535.47054008,0.00021882,2]
[313697164,1707591440732,554.14610833,0.00021846,2]
[313697165,1707591444656,269.26058215,0.00021882,2]
[313697166,1707591475657,177.16,0.00022,2]
[313697167,1707591491061,500.0,0.00022,2]
[313697168,1707591491971,3367.44,0.00021872,2]
[313697169,1707591492162,1826.89,0.00021872,2]
[313697170,1707591521253,200.0,0.00021867,2]